bitfinex-derivatives/quotes_BTCF0:USTF0_20241104
["timestamp","ask_amount","ask_price","bid_price","bid_amount"]
[1730731693115,0.073201,68342.0,68341.0,0.003]
[1730731693818,0.07321,68334.0,68330.0,0.0326]
[1730731694117,0.2138271,68334.0,68330.0,0.0326]
[1730731694323,0.1406171,68334.0,68330.0,0.0326]
[1730731694524,0.073212,68332.0,68330.0,0.0326]
[1730731694721,0.1406171,68334.0,68330.0,0.0326]
[1730731694912,0.3608,68343.0,68330.0,0.0326]
[1730731695116,0.467189,68354.0,68339.0,0.3608]
[1730731695117,0.073195,68348.0,68339.0,0.3608]
[1730731695312,0.073195,68348.0,68340.0,0.0324]
[1730731695507,0.1406171,68350.0,68341.0,0.073201]
[1730731695814,0.00076,68355.0,68351.0,0.073191]
[1730731696015,0.073187,68355.0,68348.0,0.073195]
[1730731696214,0.073188,68354.0,68347.0,0.0625]
[1730731696422,0.1406171,68356.0,68347.0,0.0625]
[1730731696615,0.1406171,68356.0,68349.0,0.073193]
[1730731697025,0.083188,68355.0,68351.0,0.001]
[1730731697221,0.015,68355.0,68351.0,0.002]
[1730731697523,0.015,68355.0,68353.0,0.073189]
[1730731697908,0.015,68355.0,68351.0,0.002]
[1730731697909,0.015,68355.0,68354.0,0.073188]
[1730731698311,0.005,68355.0,68354.0,0.073188]
[1730731698708,0.01,68356.0,68354.0,0.073188]
[1730731698914,0.015,68356.0,68354.0,0.073188]
[1730731699128,0.088186,68356.0,68354.0,0.073188]
[1730731699421,0.083186,68356.0,68354.0,0.073188]
[1730731699621,0.078187,68355.0,68354.0,0.001]
[1730731699818,0.085187,68355.0,68354.0,0.002]
[1730731700018,0.080187,68355.0,68354.0,0.001]
[1730731700323,0.440987,68355.0,68354.0,0.002]
[1730731700721,0.080187,68355.0,68354.0,0.002]
[1730731701120,0.850187,68355.0,68354.0,0.002]
[1730731701625,0.007,68355.0,68354.0,0.002]
[1730731701934,0.012,68355.0,68354.0,0.435988]
[1730731702831,0.073179,68363.0,68358.0,0.073183]
[1730731703130,0.073179,68363.0,68354.0,0.80168]
[1730731703131,0.073179,68363.0,68362.0,0.3608]
[1730731704920,0.088179,68363.0,68362.0,0.3608]
[1730731705424,0.088179,68363.0,68362.0,0.001]
[1730731705728,0.29913044,68363.0,68362.0,0.001]
[1730731705916,0.65993044,68363.0,68362.0,0.001]
[1730731707026,1.42993044,68363.0,68362.0,0.001]
[1730731707425,1.41693044,68363.0,68362.0,0.002]
[1730731707724,1.78259144,68363.0,68338.0,0.41923694]
[1730731707926,0.21095144,68351.0,68339.0,0.3929]
[1730731708115,0.21095144,68351.0,68339.0,0.0321]
[1730731708330,0.3608,68352.0,68335.0,0.00219493]
[1730731708331,0.073207,68337.0,68335.0,0.00219493]
[1730731708730,0.073203,68341.0,68335.0,0.00219493]
[1730731708934,0.073203,68340.0,68335.0,0.00219493]
[1730731709115,0.28415244,68343.0,68339.0,0.007]
[1730731709432,0.073201,68342.0,68339.0,0.007]
[1730731709634,0.21095144,68343.0,68339.0,0.007]
[1730731709821,0.073203,68340.0,68339.0,0.007]
[1730731710430,0.3608,68346.0,68339.0,0.007]
[1730731710624,0.073192,68351.0,68344.0,0.073198]
[1730731710929,0.00219562,68354.0,68345.0,0.4252]
[1730731711138,0.00219562,68354.0,68352.0,0.07319]
[1730731711334,0.00219562,68354.0,68351.0,0.3608]
[1730731711335,0.00219562,68354.0,68353.0,0.073189]
[1730731711635,0.073192,68351.0,68344.0,0.05843694]
[1730731711928,0.073192,68351.0,68339.0,0.004]
[1730731711929,0.073203,68340.0,68339.0,0.004]
[1730731712120,0.073203,68340.0,68335.0,0.00219493]
[1730731712121,0.073208,68336.0,68335.0,0.00219493]
[1730731712523,0.833208,68336.0,68335.0,0.00219493]
[1730731713333,0.073208,68336.0,68335.0,0.00219493]
[1730731714424,0.074208,68336.0,68335.0,0.01119493]
[1730731714729,0.074208,68336.0,68335.0,0.01919493]
[1730731715541,0.074208,68336.0,68335.0,0.017]
[1730731719337,0.21488669,68336.0,68335.0,0.017]
[1730731720036,0.00076,68344.0,68335.0,0.529209]
[1730731720239,0.14067869,68347.0,68340.0,0.3608]
[1730731720440,0.14067869,68347.0,68341.0,0.103702]
[1730731720632,0.14067869,68347.0,68344.0,0.073199]
[1730731720836,0.14067869,68347.0,68346.0,0.433997]
[1730731721028,0.14067869,68347.0,68346.0,0.3608]
[1730731721231,0.001,68344.0,68341.0,0.0305]
[1730731721635,0.001,68344.0,68343.0,0.0732]
[1730731721838,0.00219563,68350.0,68348.0,0.073194]
[1730731722143,0.00219563,68350.0,68349.0,0.073194]
[1730731723241,0.073186,68356.0,68352.0,0.07319]
[1730731723441,0.073188,68355.0,68352.0,0.07319]
[1730731723945,0.21097956,68364.0,68352.0,0.43399]
[1730731724148,0.36299498,68369.0,68358.0,0.3608]
[1730731724340,0.073179,68363.0,68362.0,0.073179]
[1730731724534,0.073177,68365.0,68362.0,0.07318]
[1730731724746,0.073182,68360.0,68359.0,0.031]
[1730731724949,0.36299498,68369.0,68359.0,0.0634]
[1730731725138,0.00219498,68369.0,68364.0,0.3608]
[1730731725346,0.3608,68382.0,68365.0,0.50872]
[1730731725536,0.21097956,68396.0,68380.0,0.3608]
[1730731725736,0.3608,68392.0,68381.0,0.032]
[1730731725938,0.073153,68388.0,68381.0,0.032]
[1730731726142,0.3608,68392.0,68381.0,0.032]
[1730731726346,0.073149,68391.0,68381.0,0.032]
[1730731726545,0.433948,68392.0,68381.0,0.032]
[1730731726739,0.433948,68392.0,68391.0,0.073149]
[1730731726740,0.3608,68392.0,68391.0,0.073149]
[1730731727141,0.76,68395.0,68385.0,0.073155]
[1730731727341,0.073154,68386.0,68385.0,0.073155]
[1730731727540,0.073154,68386.0,68381.0,0.032]
[1730731727541,0.3608,68401.0,68381.0,0.032]
[1730731727749,0.073147,68393.0,68388.0,0.073152]
[1730731728047,0.771,68396.0,68386.0,0.3608]
[1730731728257,0.21097956,68390.0,68380.0,0.002]
[1730731728444,0.3608,68381.0,68373.0,0.36299373]
[1730731728642,0.073167,68374.0,68373.0,0.00219373]
[1730731728852,0.073167,68374.0,68360.0,0.0331]
[1730731728853,0.433967,68374.0,68361.0,0.14748]
[1730731729060,0.07318,68362.0,68361.0,0.14748]
[1730731729445,0.3608,68368.0,68361.0,0.14748]
[1730731729446,0.073175,68367.0,68361.0,0.14748]
[1730731729745,0.073177,68365.0,68361.0,0.14748]
[1730731730150,0.07318,68362.0,68361.0,0.14748]
[1730731730353,0.073184,68359.0,68353.0,0.4257]
[1730731730541,0.073175,68367.0,68353.0,0.0325]
[1730731730742,0.3608,68362.0,68347.0,0.00219449]
[1730731731050,0.073193,68350.0,68347.0,0.00219449]
[1730731731748,0.005,68359.0,68348.0,0.43892]
[1730731731948,0.005,68359.0,68355.0,0.3608]
[1730731732151,0.3668,68362.0,68355.0,0.3608]
[1730731732455,0.3608,68362.0,68359.0,0.073183]
[1730731732652,0.3608,68362.0,68355.0,0.3608]
[1730731733045,0.3608,68362.0,68356.0,0.0306]
[1730731733241,0.76076,68367.0,68360.0,0.073181]
[1730731733460,0.76,68367.0,68363.0,0.073178]
[1730731733654,0.36156,68368.0,68364.0,0.073177]
[1730731733953,0.3608,68368.0,68364.0,0.073178]
[1730731734465,0.003,68367.0,68364.0,0.073178]
[1730731735048,0.003,68367.0,68357.0,0.0648]
[1730731735345,0.073177,68365.0,68364.0,0.001]
[1730731736059,0.073177,68365.0,68364.0,0.002]
[1730731736857,0.073177,68365.0,68364.0,0.001]
[1730731737454,0.078177,68365.0,68364.0,0.002]
[1730731738062,0.078177,68365.0,68364.0,0.001]
[1730731738063,0.073177,68365.0,68364.0,0.001]
[1730731738364,0.078177,68365.0,68364.0,0.001]
[1730731738545,0.078177,68365.0,68364.0,0.002]
[1730731738546,0.085177,68365.0,68364.0,0.002]
[1730731738856,0.085177,68365.0,68344.0,0.07539363]
[1730731738857,0.07319,68353.0,68344.0,0.07539363]
[1730731739162,0.3608,68355.0,68344.0,0.00219463]
[1730731739553,0.3608,68349.0,68344.0,0.00219463]
[1730731739761,0.073198,68345.0,68344.0,0.00219463]
[1730731740263,0.073198,68346.0,68344.0,0.00219463]
[1730731740449,0.3608,68348.0,68344.0,0.00219463]
[1730731740957,0.3608,68348.0,68344.0,0.01319463]
[1730731741265,0.3608,68348.0,68344.0,0.01619463]
[1730731741450,0.073198,68345.0,68344.0,0.01619463]
[1730731741766,0.073198,68345.0,68322.0,0.0325]
[1730731741767,0.073198,68345.0,68323.0,0.073221]
[1730731742058,0.07321,68334.0,68323.0,0.073221]
[1730731742363,0.073213,68332.0,68322.0,0.0325]
[1730731742947,0.57177956,68340.0,68322.0,0.0325]
[1730731743269,0.073208,68337.0,68330.0,0.3748]
[1730731743571,0.28419256,68331.0,68330.0,0.014]
[1730731743951,0.28419256,68331.0,68330.0,0.027]
[1730731744457,0.28419256,68331.0,68330.0,0.014]
[1730731744758,0.28419256,68331.0,68330.0,0.015]
[1730731745355,0.72323256,68331.0,68330.0,0.015]
[1730731745565,0.28419256,68331.0,68330.0,0.013]
[1730731745754,0.28519256,68331.0,68330.0,0.013]
[1730731746069,0.074213,68331.0,68330.0,0.013]
[1730731746372,0.001,68331.0,68330.0,0.013]
[1730731747454,0.21197956,68331.0,68330.0,0.013]
[1730731747659,0.21297956,68331.0,68330.0,0.009]
[1730731747868,0.28619256,68331.0,68330.0,0.009]
[1730731752267,0.002,68331.0,68330.0,0.009]
[1730731752469,0.3608,68337.0,68330.0,0.009]
[1730731752470,0.00076,68354.0,68344.0,0.073199]
[1730731752766,0.073163,68378.0,68344.0,0.073199]
[1730731752767,0.0102,68368.0,68346.0,0.073196]
[1730731752955,0.0175,68370.0,68367.0,0.57177956]
[1730731752956,0.0068,68370.0,68367.0,0.57177956]
[1730731753153,0.0079,68373.0,68367.0,0.57177956]
[1730731753154,0.0079,68373.0,68372.0,0.073169]
[1730731753360,0.0068,68381.0,68377.0,0.073164]
[1730731753658,0.0068,68381.0,68380.0,0.433961]
[1730731754064,0.0068,68381.0,68380.0,1.233481]
[1730731754254,0.0079,68391.0,68380.0,1.233481]
[1730731754255,0.0073,68398.0,68384.0,0.073156]
[1730731754460,0.073135,68404.0,68394.0,0.3608]
[1730731754668,0.36299378,68409.0,68394.0,0.3608]
[1730731754669,0.073141,68399.0,68394.0,0.3608]
[1730731754874,0.36299378,68409.0,68387.0,0.433953]
[1730731754875,0.3608,68402.0,68387.0,0.433953]
[1730731755059,0.3608,68402.0,68387.0,0.50832]
[1730731755362,0.3608,68402.0,68397.0,0.073142]
[1730731755561,0.3608,68402.0,68395.0,0.21097956]
[1730731756065,0.3608,68402.0,68398.0,0.073141]
[1730731756066,0.3748,68402.0,68398.0,0.073141]
[1730731756459,0.014,68402.0,68398.0,0.073141]
[1730731756769,0.087137,68402.0,68395.0,0.21097956]
[1730731757661,0.073139,68400.0,68394.0,0.001]
[1730731757854,0.019,68402.0,68395.0,0.073144]
[1730731758069,0.019,68402.0,68395.0,0.001]
[1730731758254,0.073141,68398.0,68395.0,0.001]
[1730731758456,0.073141,68398.0,68395.0,0.002]
[1730731758664,0.092137,68402.0,68395.0,0.002]
[1730731758856,0.092137,68402.0,68395.0,0.001]
[1730731758857,0.014,68400.0,68395.0,0.001]
[1730731759267,0.014,68400.0,68396.0,0.073143]
[1730731759667,0.073142,68398.0,68395.0,0.001]
[1730731759965,0.014,68398.0,68395.0,0.002]
[1730731760165,0.014,68398.0,68397.0,0.073142]
[1730731760574,0.005,68402.0,68401.0,0.073138]
[1730731760761,0.433929,68410.0,68403.0,0.073135]
[1730731760956,0.3608,68410.0,68406.0,0.073132]
[1730731762064,0.073131,68408.0,68406.0,0.001]
[1730731762267,0.073132,68407.0,68406.0,0.002]
[1730731762568,0.073132,68407.0,68406.0,0.001]
[1730731762769,0.073132,68407.0,68406.0,0.005]
[1730731762967,0.073132,68407.0,68406.0,0.004]
[1730731763269,0.3608,68409.0,68406.0,0.006]
[1730731764257,0.3608,68409.0,68406.0,0.002]
[1730731764461,0.3608,68409.0,68408.0,0.073131]
[1730731764869,0.073123,68415.0,68408.0,0.073131]
[1730731765075,0.001,68409.0,68408.0,0.073131]
[1730731765274,0.00219333,68422.0,68408.0,0.511691]
[1730731765466,0.00219333,68422.0,68404.0,0.3608]
[1730731765467,0.00219333,68422.0,68416.0,0.073121]
[1730731765669,0.07530933,68422.0,68416.0,0.073121]
[1730731765870,0.07530933,68422.0,68410.0,0.3608]
[1730731766066,0.00219333,68422.0,68420.0,0.073117]
[1730731766369,0.00219333,68422.0,68410.0,0.3608]
[1730731766561,0.00219333,68422.0,68421.0,0.073117]
[1730731766959,0.073109,68429.0,68416.0,0.51212]
[1730731767162,0.433908,68430.0,68422.0,0.073115]
[1730731767359,0.073108,68429.0,68416.0,0.51064]
[1730731767575,0.073108,68429.0,68422.0,0.3608]
[1730731767974,0.3608,68430.0,68424.0,0.073112]
[1730731768278,0.76076,68434.0,68423.0,0.073114]
[1730731768279,0.073104,68433.0,68423.0,0.073114]
[1730731768468,0.21097956,68444.0,68422.0,0.3618]
[1730731768679,0.004,68429.0,68426.0,0.073111]
[1730731769185,0.003,68430.0,68429.0,0.073108]
[1730731769367,0.09567496,68447.0,68442.0,0.073094]
[1730731769368,0.07309,68447.0,68442.0,0.073094]
[1730731769674,0.07309,68447.0,68430.0,0.073107]
[1730731769675,0.02304422,68457.0,68441.0,0.3608]
[1730731769975,0.073094,68442.0,68441.0,0.3608]
[1730731770377,0.76,68456.0,68441.0,0.3608]
[1730731770676,0.76,68456.0,68448.0,0.3608]
[1730731770886,0.02203114,68460.0,68448.0,0.3608]
[1730731770887,0.38283114,68460.0,68448.0,0.3608]
[1730731771075,0.073084,68452.0,68448.0,0.3608]
[1730731771271,0.073084,68452.0,68448.0,0.433888]
[1730731771573,0.38283114,68460.0,68448.0,0.433888]
[1730731771574,0.00319246,68449.0,68448.0,0.433888]
[1730731772069,0.00219246,68449.0,68448.0,0.433888]
[1730731772263,0.00619246,68449.0,68448.0,0.435888]
[1730731772469,0.02228626,68464.0,68457.0,0.073078]
[1730731772671,0.3608,68465.0,68455.0,0.3608]
[1730731772861,0.073071,68464.0,68455.0,0.3608]
[1730731773067,0.3608,68465.0,68455.0,0.3608]
[1730731773268,0.073078,68458.0,68456.0,0.073079]
[1730731773462,0.76,68469.0,68455.0,0.3608]
[1730731773666,0.76,68469.0,68459.0,0.073075]
[1730731773867,0.76,68469.0,68455.0,0.3608]
[1730731774166,0.073077,68459.0,68457.0,0.073078]
[1730731774366,0.073079,68456.0,68455.0,0.3608]
[1730731774566,0.76,68469.0,68455.0,0.3608]
[1730731774866,0.76,68469.0,68459.0,0.001]
[1730731775062,0.073075,68460.0,68459.0,0.002]
[1730731775780,0.073075,68460.0,68459.0,0.001]
[1730731777077,0.073079,68456.0,68455.0,0.002]
[1730731777276,0.28405856,68456.0,68455.0,0.002]
[1730731777468,0.28405856,68456.0,68438.0,0.3608]
[1730731777469,0.64921956,68456.0,68438.0,0.3608]
[1730731777674,0.07309,68446.0,68438.0,0.3608]
[1730731777875,0.073091,68445.0,68438.0,0.3608]
[1730731778068,0.3608,68448.0,68432.0,0.073104]
[1730731778069,0.073094,68443.0,68432.0,0.073104]
[1730731778270,0.3608,68448.0,68428.0,0.00219195]
[1730731778481,0.3608,68439.0,68428.0,0.15195195]
[1730731778679,0.3608,68448.0,68428.0,0.15195195]
[1730731778680,0.073096,68441.0,68438.0,0.001]
[1730731778880,0.073096,68440.0,68438.0,0.001]
[1730731779072,0.073096,68440.0,68438.0,0.002]
[1730731779468,0.073097,68439.0,68438.0,0.002]
[1730731779668,0.833097,68439.0,68438.0,0.001]
[1730731779982,1.633257,68439.0,68438.0,0.001]
[1730731780377,1.633257,68439.0,68428.0,0.00219195]
[1730731780378,1.633257,68439.0,68428.0,0.00319195]
[1730731780575,0.073108,68429.0,68428.0,0.00319195]
[1730731780980,0.511508,68429.0,68428.0,0.00319195]
[1730731781182,0.511508,68429.0,68428.0,0.00219195]
[1730731781680,0.073108,68429.0,68428.0,0.00219195]
[1730731782073,0.512508,68429.0,68428.0,0.00219195]
[1730731782676,0.513508,68429.0,68428.0,0.00319195]
[1730731783284,0.075108,68429.0,68428.0,0.00319195]
[1730731783787,0.075108,68429.0,68428.0,0.00419195]
[1730731783985,0.002,68429.0,68428.0,0.00419195]
[1730731784589,0.075108,68429.0,68428.0,0.002]
[1730731784787,0.076108,68429.0,68428.0,0.002]
[1730731785174,0.074108,68429.0,68428.0,0.001]
[1730731785485,0.075108,68429.0,68428.0,0.001]
[1730731785681,0.002,68429.0,68428.0,0.001]
[1730731785891,0.002,68429.0,68428.0,0.002]
[1730731786085,0.002,68429.0,68428.0,0.075109]
[1730731786480,0.002,68429.0,68422.0,0.3608]
[1730731786481,0.001,68429.0,68422.0,0.3608]
[1730731786681,0.002,68429.0,68428.0,0.074108]
[1730731787382,0.074108,68429.0,68428.0,0.002]
[1730731788285,0.075108,68429.0,68428.0,0.001]
[1730731788890,0.074108,68429.0,68428.0,0.001]
[1730731789391,0.073108,68429.0,68428.0,0.001]
[1730731789590,0.002,68429.0,68416.0,0.3608]
[1730731789792,0.073116,68422.0,68416.0,0.3608]
[1730731790184,0.002,68429.0,68416.0,0.433921]
[1730731790385,0.002,68429.0,68416.0,0.3608]
[1730731790991,0.07311,68428.0,68416.0,0.3608]
[1730731791177,0.073115,68423.0,68416.0,0.3608]
[1730731791590,0.073116,68422.0,68416.0,0.3608]
[1730731791783,0.073116,68422.0,68416.0,0.3658]
[1730731791984,0.3608,68431.0,68416.0,0.3688]
[1730731792284,0.073114,68424.0,68416.0,0.441922]
[1730731792484,0.073114,68424.0,68416.0,0.438922]
[1730731792692,0.073115,68423.0,68416.0,0.442922]
[1730731793085,0.21097956,68444.0,68422.0,0.3608]
[1730731793283,0.073111,68426.0,68422.0,0.3608]
[1730731793986,0.3608,68433.0,68422.0,0.3608]
[1730731794291,0.073108,68430.0,68423.0,0.073114]
[1730731794488,0.073108,68430.0,68422.0,0.3608]
[1730731794489,0.3618,68439.0,68422.0,0.3608]
[1730731794691,0.073102,68435.0,68431.0,0.073106]
[1730731794994,0.001,68439.0,68428.0,0.3608]
[1730731795194,0.073102,68435.0,68430.0,0.073107]
[1730731795388,0.001,68439.0,68434.0,0.3608]
[1730731795694,0.001,68439.0,68436.0,0.0731]
[1730731795885,0.001,68435.0,68434.0,0.433903]
[1730731796385,0.001,68439.0,68438.0,0.073099]
[1730731796583,0.00219279,68443.0,68442.0,0.073094]
[1730731796888,0.073074,68462.0,68452.0,0.073083]
[1730731797193,0.3608,68462.0,68454.0,0.07308]
[1730731798187,0.001,68461.0,68452.0,0.001]
[1730731798396,0.073082,68453.0,68452.0,0.001]
[1730731798601,0.073082,68453.0,68451.0,0.433885]
[1730731799199,0.3618,68462.0,68451.0,0.433885]
[1730731799491,0.073082,68454.0,68451.0,0.433885]
[1730731799687,0.073082,68454.0,68451.0,0.3608]
[1730731799891,0.073078,68458.0,68454.0,0.073081]
[1730731800096,0.073075,68460.0,68457.0,0.3608]
[1730731800294,0.073077,68458.0,68457.0,0.3608]
[1730731800697,0.001,68461.0,68457.0,0.3608]
[1730731801002,0.073076,68459.0,68457.0,0.3608]
[1730731801298,0.073076,68459.0,68457.0,0.433878]
[1730731801698,0.3618,68462.0,68457.0,0.433878]
[1730731801904,0.073077,68459.0,68457.0,0.434878]
[1730731802404,0.073077,68458.0,68457.0,0.3618]
[1730731802595,0.073077,68458.0,68457.0,0.002]
[1730731803393,0.073077,68458.0,68457.0,0.001]
[1730731803598,0.073077,68458.0,68457.0,0.002]
[1730731804400,0.073077,68458.0,68457.0,0.001]
[1730731804713,0.073077,68458.0,68457.0,0.002]
[1730731805996,0.001,68459.0,68457.0,0.002]
[1730731806204,0.001,68459.0,68458.0,0.073077]
[1730731806407,0.14636,68477.0,68458.0,0.073077]
[1730731806408,0.3676,68485.0,68458.0,0.43824]
[1730731806591,0.3676,68485.0,68467.0,0.073067]
[1730731806592,0.073064,68471.0,68467.0,0.073067]
[1730731806798,0.3608,68479.0,68463.0,0.57177956]
[1730731807104,0.073065,68470.0,68467.0,0.073067]
[1730731807308,0.073065,68470.0,68463.0,0.57177956]
[1730731807491,0.073063,68471.0,68469.0,0.3608]
[1730731807699,0.00219169,68480.0,68469.0,0.57177956]
[1730731807896,0.073057,68477.0,68476.0,0.073057]
[1730731808106,0.00219169,68480.0,68475.0,0.3608]
[1730731808291,0.073056,68479.0,68478.0,0.073056]
[1730731808492,0.00219169,68480.0,68478.0,0.073056]
[1730731808790,0.173033,68500.0,68479.0,0.64905956]
[1730731808791,0.1,68500.0,68479.0,0.64905956]
[1730731808990,0.1,68500.0,68497.0,0.3608]
[1730731809511,0.073034,68498.0,68497.0,0.3608]
[1730731809803,0.1,68500.0,68499.0,0.073033]
[1730731810201,0.173032,68500.0,68499.0,0.073033]
[1730731810401,0.07304,68493.0,68492.0,0.3608]
[1730731812802,0.1,68500.0,68492.0,0.3608]
[1730731813007,0.173032,68500.0,68499.0,0.3608]
[1730731813900,0.1,68500.0,68499.0,0.433833]
[1730731814111,0.3608,68515.0,68499.0,0.433833]
[1730731814112,0.3608,68515.0,68500.0,0.43796]
[1730731814410,0.21097956,68545.0,68500.0,0.43796]
[1730731814411,0.073007,68524.0,68520.0,0.073011]
[1730731814598,0.073007,68524.0,68506.0,0.3608]
[1730731814599,0.072987,68543.0,68528.0,0.073002]
[1730731814813,0.02548895,68545.0,68529.0,0.433801]
[1730731814814,0.3608,68540.0,68529.0,0.433801]
[1730731814999,0.3608,68542.0,68529.0,0.3608]
[1730731815309,0.76,68544.0,68529.0,0.3608]
[1730731815310,0.073,68531.0,68529.0,0.3608]
[1730731815606,0.3608,68541.0,68525.0,0.073005]
[1730731815793,0.072996,68534.0,68528.0,0.073002]
[1730731815996,0.072998,68533.0,68529.0,0.433801]
[1730731816304,0.073,68531.0,68529.0,0.3608]
[1730731816507,0.073,68530.0,68523.0,0.3624]
[1730731816700,0.433807,68524.0,68523.0,0.0016]
[1730731816901,0.073025,68507.0,68506.0,0.3608]
[1730731817298,0.073025,68507.0,68502.0,0.0021896]
[1730731817500,0.073029,68503.0,68502.0,0.0021896]
[1730731818394,0.3608,68503.0,68488.0,0.3608]
[1730731818800,0.07304,68494.0,68488.0,0.3608]
[1730731819202,0.76,68502.0,68488.0,0.3608]
[1730731819500,0.76,68502.0,68488.0,0.3638]
[1730731819501,0.073044,68489.0,68488.0,0.3638]
[1730731820516,0.073044,68489.0,68488.0,0.3618]
[1730731822100,0.073044,68489.0,68488.0,0.3608]
[1730731822897,0.3608,68494.0,68481.0,0.00219028]
[1730731823114,0.073052,68482.0,68481.0,0.00219028]
[1730731823312,0.073052,68482.0,68466.0,0.00148]
[1730731823313,0.57177956,68482.0,68466.0,0.00148]
[1730731823502,0.57177956,68482.0,68465.0,0.3608]
[1730731823503,0.3608,68476.0,68465.0,0.3608]
[1730731823705,0.07306,68474.0,68465.0,0.3608]
[1730731823906,0.3608,68476.0,68465.0,0.3608]
[1730731824409,0.073067,68468.0,68465.0,0.3608]
[1730731825010,0.073065,68470.0,68465.0,0.3608]
[1730731825212,0.073068,68467.0,68465.0,0.3638]
[1730731825512,0.073064,68471.0,68465.0,0.3638]
[1730731825898,0.073064,68471.0,68465.0,0.3608]
[1730731826102,0.073064,68471.0,68465.0,0.3628]
[1730731826309,0.073064,68471.0,68465.0,0.3638]
[1730731826517,0.0326,68481.0,68467.0,0.21097956]
[1730731826808,0.00219118,68491.0,68480.0,0.28403256]
[1730731826809,0.073047,68487.0,68480.0,0.28403256]
[1730731827110,0.073052,68482.0,68476.0,0.3608]
[1730731827314,0.073049,68485.0,68472.0,0.3608]
[1730731827611,0.073062,68472.0,68465.0,0.003]
[1730731827911,0.073062,68472.0,68465.0,0.007]
[1730731828212,0.3608,68482.0,68465.0,0.007]
[1730731828409,0.433852,68482.0,68465.0,0.007]
[1730731828616,0.073061,68473.0,68472.0,0.003]
[1730731830607,0.0333,68492.0,68479.0,0.3608]
[1730731830999,0.073042,68491.0,68473.0,0.073061]
[1730731831302,0.3608,68487.0,68473.0,0.073061]
[1730731831498,0.073053,68482.0,68470.0,0.50656]
[1730731831706,0.073053,68482.0,68472.0,0.006]
[1730731832108,0.073053,68481.0,68472.0,0.079062]
[1730731832309,0.073053,68481.0,68472.0,0.073062]
[1730731832511,0.073053,68481.0,68473.0,0.004]
[1730731832811,0.3608,68487.0,68476.0,0.3608]
[1730731833018,0.0333,68492.0,68476.0,0.3608]
[1730731833019,0.073046,68488.0,68479.0,0.005]
[1730731833221,0.3608,68491.0,68479.0,0.005]
[1730731833510,0.073045,68488.0,68482.0,0.073051]
[1730731833713,0.001,68481.0,68477.0,0.3608]
[1730731833908,0.001,68481.0,68476.0,0.073058]
[1730731834412,0.3738,68491.0,68479.0,0.001]
[1730731834615,0.073054,68480.0,68479.0,0.001]
[1730731834801,0.3738,68491.0,68470.0,0.3608]
[1730731834802,0.3608,68483.0,68470.0,0.3608]
[1730731835009,0.073056,68478.0,68477.0,0.007]
[1730731835701,0.073056,68478.0,68477.0,0.001]
[1730731836320,0.073056,68478.0,68460.0,0.433874]
[1730731836615,0.073065,68470.0,68460.0,0.433874]
[1730731837116,0.073066,68469.0,68461.0,0.073074]
[1730731837509,0.3608,68473.0,68460.0,0.3608]
[1730731837704,0.433862,68473.0,68460.0,0.57777956]
[1730731837915,0.001,68470.0,68463.0,0.073071]
[1730731838439,0.001,68470.0,68460.0,0.57777956]
[1730731838440,0.073068,68467.0,68460.0,0.3668]
[1730731838610,0.433868,68467.0,68460.0,0.006]
[1730731838807,0.073084,68452.0,68451.0,0.00219108]
[1730731839109,0.3608,68467.0,68451.0,0.00219108]
[1730731839110,0.3608,68461.0,68451.0,0.00219108]
[1730731839520,0.073074,68462.0,68452.0,0.073083]
[1730731839712,0.073073,68462.0,68451.0,0.00219108]
[1730731839914,0.105569,68466.0,68458.0,0.073076]
[1730731840115,0.105569,68466.0,68461.0,0.005]
[1730731840116,0.0325,68466.0,68461.0,0.005]
[1730731840411,0.073072,68464.0,68461.0,0.005]
[1730731840613,0.0325,68466.0,68457.0,0.073078]
[1730731840820,0.001,68462.0,68457.0,0.073078]
[1730731841014,0.001,68462.0,68460.0,0.007]
[1730731841204,0.073074,68461.0,68460.0,0.007]
[1730731841411,0.001,68462.0,68460.0,0.007]
[1730731841606,0.00219184,68470.0,68461.0,0.005]
[1730731841827,0.7236,68443.0,68440.0,0.01428448]
[1730731842029,0.3608,68408.0,68400.0,0.1]
[1730731842216,0.3608,68408.0,68360.0,0.0309]
[1730731842217,0.7216,68401.0,68375.0,0.02201392]
[1730731842410,0.21097956,68376.0,68363.0,0.3608]
[1730731842723,0.21097956,68376.0,68374.0,0.3608]
[1730731842920,0.21097956,68381.0,68374.0,0.6608]
[1730731843124,0.21097956,68381.0,68375.0,0.43872]
[1730731843312,0.3608,68387.0,68375.0,0.73872]
[1730731843517,0.3608,68397.0,68385.0,0.073155]
[1730731843713,0.3608,68397.0,68386.0,0.0629]
[1730731843915,0.21097956,68387.0,68386.0,0.0629]
[1730731844225,0.21097956,68387.0,68386.0,0.50158]
[1730731844226,0.11117956,68387.0,68386.0,0.50158]
[1730731845322,0.001,68387.0,68386.0,0.50458]
[1730731845517,0.001,68387.0,68386.0,0.51158]
[1730731846023,0.001,68387.0,68386.0,0.01]
[1730731846024,0.434953,68387.0,68386.0,0.01]
[1730731846226,0.073158,68383.0,68371.0,0.07317]
[1730731846423,0.073158,68383.0,68371.0,0.22673]
[1730731846627,0.073158,68383.0,68371.0,0.52673]
[1730731846934,0.073158,68383.0,68371.0,0.45356]